Cogmind - Beta 15 @@@ ROGUE MODE // 2025.08.22 @ 00:32:42 Player: SadBl0ckBoy Result: Destroyed by G-34 Mercenary with Small Laser Performance ------------- Evolutions (1) 500 Regions Visited (2) 400 Robots Destroyed (10) 50 Value Destroyed (246) 246 Prototype IDs (0) 0 Alien Tech Used (0) 0 Bonus (0) 0 TOTAL SCORE: 1196 Bonus ------- None Cogmind --------- Core Integrity 0/400 Matter 1/300 Energy 93/100 System Corruption 0% Temperature Cool (6) Movement Core (50) Location -9/Materials Parts ------- > --- POWER (1) -------- (None) > --- PROPULSION (4) --- (None) > --- UTILITY (2) ------ Visual Processing Unit > --- WEAPON (2) ------- Heavy Hammer > --- INVENTORY (5) ---- Light Treads Light Treads Peak State ------------ > --- POWER ------------ Ion Engine > --- PROPULSION ------- Flight Unit Flight Unit Flight Unit Flight Unit > --- UTILITY ---------- Visual Processing Unit > --- WEAPON ----------- Light Cannon Light Cannon > --- INVENTORY -------- Light Treads Light Treads EM Pulse Gun Medium Laser [Rating: 9] Favorites ----------- Power Ion Engine Engine Ion Engine Propulsion Light Treads Treads Light Treads Leg Aluminum Leg Flight Unit Flight Unit Utility Visual Processing Unit Storage Huge Storage Unit Processor Visual Processing Unit Weapon Light Cannon Energy Gun Medium Laser Ballistic Cannon Light Cannon Impact Weapon Heavy Hammer Build | -11 -10 -9 ------- Run | Yrd Mat Mat Slots Evolved 2 | . . 2 Power . | . . . Propulsion 2 | . . 2 Utility . | . . . Weapon . | . . . Parts Attached 22 | 6 7 9 Power 1 | 1 . . Engine 1 | 1 . . Core . | . . . Reactor . | . . . Propulsion 11 | 2 2 7 Treads 2 | 2 . . Leg 2 | . 2 . Wheel . | . . . Hover . | . . . Flight 7 | . . 7 Utility 4 | 1 2 1 Device . | . . . Storage 3 | 1 2 . Processor 1 | . . 1 Hackware . | . . . Protection . | . . . Artifact . | . . . Weapon 6 | 2 3 1 Energy Gun 2 | 2 . . Energy Cannon . | . . . Ballistic Gun . | . . . Ballistic Cannon 3 | . 3 . Launcher . | . . . Special Weapon . | . . . Impact Weapon 1 | . . 1 Slashing Weapon . | . . . Piercing Weapon . | . . . Special Melee Weapon . | . . . Unidentified Prototypes . | . . . Parts Lost 11 | . . 11 Power 1 | . . 1 Propulsion 7 | . . 7 Utility . | . . . Weapon 3 | . . 3 Highest Loss Streak 6 | . . 6 To Critical Strikes . | . . . Average Backups 3 | . 3 3 Power . | . . . Propulsion . | . . 2 Utility . | . . . Weapon 1 | . 2 1 Tool/Special . | . . . Unused Backups . | . . . Power . | . . . Propulsion . | . . . Utility . | . . . Weapon . | . . . Tool/Special . | . . . Average Slot Usage (%) 72 | . 77 56 Engine 11 | . 14 3 Treads 21 | . 28 . Flight 5 | . . 24 Storage 5 | . 6 . Processor 2 | . . 10 Energy Gun 8 | . 9 3 Ballistic Cannon 16 | . 18 12 Peak Build Rating 9 | 6 7 9 Average Rating 5 | 3 5 6 On Entrance 4 | . 6 7 Naked Turns . | . . . Heaviest Build 91 | 14 91 11 Greatest Support 40 | 40 40 16 Greatest Overweight (x) 2 | . 2 . Average Overweight (x) . | . . . Largest Inventory Capacity 25 | 8 25 25 Average Capacity 9 | 7 11 5 Most Carried 9 | 4 9 9 Average Carried 3 | . 3 3 Final Capacity 25 | 8 25 5 Final Carried 9 | . 9 2 Class Distribution -------------------- 88% | Mutant 6% | Scavenger-Mutant 4% | Scavenger-Sprinter Dominant Class ---------------- Mutant | -10/Materials Mutant | -9/Materials Resources | -11 -10 -9 ----------- Run | Yrd Mat Mat Matter Collected 346 | 170 147 29 Remotely . | . . . Salvage Created 206 | . 181 25 Parts 15 | . 15 . Haulers Intercepted . | . . . Recyclers Shooed 1 | . 1 . Parts Field Recycled . | . . . Retrieved Matter . | . . . Parts Self-Destructed . | . . . Prevented . | . . . Kills | -11 -10 -9 ------- Run | Yrd Mat Mat Combat Hostiles Destroyed 7 | . 5 2 Guns 2 | . 2 . Cannons 5 | . 3 2 Classes Destroyed 4 | . 3 1 Watcher 3 | . 3 . Swarmer 3 | . 3 . Grunt 2 | . 2 . Sentry 2 | . . 2 Best Kill Streak 3 | . 3 1 Combat Bots Only 3 | . 3 1 Max Kills in Single Turn 1 | . 1 1 Gunslinging . | . . . Exploded . | . . . Melee . | . . . Uniques/NPCs Destroyed . | . . . Combat | -11 -10 -9 -------- Run | Yrd Mat Mat Hostile Shots Fired 171 | . 15 156 Missed 72 | . 3 69 Hits 99 | . 12 87 Projectile 99 | . 12 87 Damage Taken 1051 | . 113 938 Core 410 | . 6 404 Absorbed by Shields . | . . . Core Remaining (%) 98 | 100 97 . Volleys Fired 41 | . 16 25 Largest 2 | . 2 2 Hottest 90 | . 90 90 Shots Fired 81 | . 32 49 Gun 28 | . 20 8 Cannon 53 | . 12 41 Launcher . | . . . Special . | . . . Kinetic 53 | . 12 41 Thermal 14 | . 10 4 Explosive . | . . . Electromagnetic 14 | . 10 4 Robot Hit Streak 5 | . 5 4 Robot Miss Streak 6 | . 4 6 Penetration Max . | . . . Secondary Targets . | . . . Shots Hit Robots 42 | . 16 26 Core Hits 14 | . 10 4 Critical Kills . | . . . Critical Parts Destroyed . | . . . Critical Strikes 2 | . 1 1 Burn 1 | . 1 . Blast 1 | . . 1 Melee Attacks 2 | . . 2 Impact 2 | . . 2 Slashing . | . . . Piercing . | . . . Sneak Attacks . | . . . Combat Hostiles . | . . . Follow-up Attacks . | . . . Damage Inflicted 769 | . 275 494 Guns 198 | . 149 49 Cannons 483 | . 90 393 Explosions 31 | . 31 . Melee 52 | . . 52 Ramming 5 | . 5 . Kinetic 483 | . 90 393 Thermal 131 | . 94 37 Explosive . | . . . Electromagnetic 98 | . 86 12 Impact 52 | . . 52 Slashing . | . . . Piercing . | . . . Highest Corruption . | . . . Average Corruption . | . . . Corruption Purged . | . . . Corruption Blocked . | . . . Overload Shots . | . . . Overflow Damage 32 | . . 32 Projectiles . | . . . Explosions . | . . . Melee 32 | . . 32 Knockbacks 1 | . 1 . Impact . | . . . Kinetic 1 | . 1 . Secondary . | . . . Self-Inflicted Damage . | . . . Shots . | . . . Rammed 1 | . 1 . Targets Rammed 1 | . 1 . Kicked . | . . . Crushed . | . . . Highest Temperature 150 | . 150 79 Average Temperature 35 | . 52 23 Received Heat Transfer 285 | . 30 255 Siege Activations . | . . . Martial Activations . | . . . Shielding Activations . | . . . Robots Disrupted . | . . . Combat Hostiles . | . . . Robots Corrupted 1 | . 1 . Combat Hostiles . | . . . Parts Fried 2 | . 2 . Impact Corruptions 1 | . . 1 Robots Melted . | . . . Combat Hostiles . | . . . Parts Melted . | . . . Heat Transferred 420 | . 309 111 Parts Sabotaged . | . . . Parts Stolen . | . . . Parts Stripped . | . . . Power Chain Reactions 1 | . 1 . Alert | -11 -10 -9 ------- Run | Yrd Mat Mat Maximum Alert Level . | . . . Low Security (%) 100 | 100 100 100 Level 1 . | . . . Level 2 . | . . . Level 3 . | . . . Level 4 . | . . . Level 5 . | . . . High Security . | . . . Max Security . | . . . Peak Influence 63 | . 63 36 Initial 16 | . . 16 Average 9 | . 11 8 Influence Increases 253 | . 163 90 Destroy 0b10 Robot/C 140 | . 100 40 Destroy 0b10 Robot/NC 15 | . 15 . Destroy Leader 46 | . 26 20 Disable Machine 15 | . . 15 Destroy Structure 7 | . 7 . Partial Spotted 15 | . 15 . Lose Combat Pursuer 15 | . . 15 Influence Decreases 253 | . 124 129 Entered New Map 23 | . . 23 Time Decay 194 | . 124 70 Lost Part 36 | . . 36 Squads Dispatched 3 | . 1 2 Investigation . | . . . Extermination . | . . . Reinforcement 3 | . 1 2 Assault . | . . . Garrison . | . . . Intercept . | . . . Searches Triggered . | . . . Construction Impeded . | . . . Haulers Reinforced . | . . . Active Scanning Responses . | . . . Cargo Convoy Interrupts . | . . . Stealth | -11 -10 -9 --------- Run | Yrd Mat Mat Distress Signals 3 | . . 3 Communications Jammed . | . . . Distress Signals . | . . . Times Spotted 26 | . 10 16 Peak Tracking Total 11 | . 3 11 Tactical Retreats 1 | . . 1 Traps | -11 -10 -9 ------- Run | Yrd Mat Mat Traps Triggered . | . . . Indirectly . | . . . Trap Hack Attempts . | . . . Triggered . | . . . Disarmed . | . . . Reprogrammed . | . . . Reused . | . . . Traps Extracted . | . . . Installed . | . . . Triggered . | . . . Machines | -11 -10 -9 ---------- Run | Yrd Mat Mat Machines Disabled 1 | . . 1 Max in Single Turn 1 | . . 1 Machines Repaired . | . . . Machines Dismantled . | . . . Machines Sabotaged . | . . . Overloaded Fab Kills . | . . . Hacking | -11 -10 -9 --------- Run | Yrd Mat Mat Machines Accessed . | . . . Terminals . | . . . Fabricators . | . . . Repair Stations . | . . . Recycling Units . | . . . Scanalyzers . | . . . Garrison Access . | . . . Total Hacks . | . . . Successful . | . . . Failed . | . . . Catastrophic . | . . . Database Lockouts . | . . . Manual . | . . . Terminals . | . . . Fabricators . | . . . Repair Stations . | . . . Recycling Units . | . . . Scanalyzers . | . . . Garrison Access . | . . . Terminal Hacks . | . . . Fabricator Hacks . | . . . Repair Station Hacks . | . . . Recycling Unit Hacks . | . . . Scanalyzer . | . . . Garrison Access Hacks . | . . . Unauthorized Hacks . | . . . Terminals . | . . . Fabricators . | . . . Repair Stations . | . . . Recycling Units . | . . . Scanalyzers . | . . . Garrison Access . | . . . Data Cores Recovered . | . . . Used . | . . . Hacking Detections . | . . . Full Trace Events . | . . . Feedback Events . | . . . Feedback Blocked . | . . . Robot Schematics Acquired . | . . . Robots Built . | . . . Authchips . | . . . Time . | . . . Total Robot Build Rating . | . . . Part Schematics Acquired . | . . . Parts Built . | . . . Authchips . | . . . Time . | . . . Total Part Build Rating . | . . . Parts Repaired . | . . . Time . | . . . Parts Recycled . | . . . Recycled Matter . | . . . Retrieved Matter . | . . . Retrieved Components . | . . . Parts Scanalyzed . | . . . Part Schematics Acquired . | . . . Parts Damaged . | . . . Bothacking | -11 -10 -9 ------------ Run | Yrd Mat Mat Used RIF Installer . | . . . Robots Hacked . | . . . Non-combat . | . . . Combat . | . . . Robot Hacks Applied . | . . . Relay Couplers Released . | . . . Fabnet Peak Effective % . | . . . Robots Rewired . | . . . Allies Hacked . | . . . Hacks Repelled . | . . . Allies | -11 -10 -9 -------- Run | Yrd Mat Mat Total Allies . | . . . Largest Group . | . . . Highest-Rated Group . | . . . Highest-Rated Ally . | . . . Total Orders . | . . . Ally Attacks . | . . . Total Damage . | . . . Kills . | . . . Allies Corrupted . | . . . Allies Melted . | . . . Intel | -11 -10 -9 ------- Run | Yrd Mat Mat Active Infowar (turns) 182 | . . 182 Optics 182 | . . 182 Robot Analysis Total . | . . . Derelict Logs Recovered . | . . . Drone Launches . | . . . Drone Recoveries . | . . . Exploration | -11 -10 -9 ------------- Run | Yrd Mat Mat Turns Passed 869 | 77 604 188 Spaces Moved 568 | 59 285 224 Core 31 | 28 . 3 Treads 316 | 31 285 . Legs . | . . . Wheels . | . . . Hover . | . . . Flight 221 | . . 221 Fastest Speed 31 | 50 160 31 Average Speed 117 | 107 183 37 Slowest Speed 320 | 160 320 50 Overloaded Moves . | . . . Propulsion Burnouts . | . . . Robots Hopped 1 | . . 1 Potential Cave-ins . | . . . Cave-ins Triggered . | . . . Exploration Rate (%) 28 | 4 54 26 Regions Visited 2 Branch Regions . Pre-discovered Areas . | . . . Known Exits Taken . | . . . Unknown Exits Taken 2 | 1 1 . Scrap Searched . | . . . Spaces Dug . | . . . Terrain Destroyed 6 | . 6 . Melee . | . . . Projectile . | . . . AOE 6 | . 6 . Terrain Rammed . | . . . Walls Destroyed . | . . . Machines Disabled . | . . . Actions | -11 -10 -9 --------- Run | Yrd Mat Mat Total 679 | 73 331 275 Wait 12 | 3 1 8 Move 564 | 58 284 222 Hop 1 | . . 1 Pick Up 23 | 6 13 4 Fast Attach . | . . . Attach 15 | 6 1 8 Detach . | . . . Swap 14 | . 11 3 Drop 6 | . 4 2 Fire 41 | . 16 25 Melee 2 | . . 2 Ram . | . . . Kick . | . . . Crush 1 | . 1 . Escape Stasis . | . . . Rewire . | . . . Trap . | . . . Miscellaneous . | . . . Route ------- -11/Scrapyard -10/Materials (discovered 3 exits: [*Mat x2] / [*Min]) -9/Materials (discovered 1 exit: [*Sto]) History --------- Turn | Location | Event 12 | -11/Scrapyard | Discovered new exit (range 16) 78 | -11/Scrapyard | Entered Materials 162 | -10/Materials | Discovered new exit (range 12) 323 | -10/Materials | Build established: Mutant 331 | -10/Materials | Discovered new exit (range 12) 603 | -10/Materials | Discovered new exit (range 15) 682 | -10/Materials | Entered another Materials area 682 | -9/Materials | Evolved 2 slots: Propulsion x2 697 | -9/Materials | Discovered new exit (range 11) 808 | -9/Materials | Lost 4 parts (1p2n1w) 856 | -9/Materials | Core integrity fell below 50% 867 | -9/Materials | Core integrity fell below 20% 870 | -9/Materials | Destroyed by G-34 Mercenary with Small Laser Last Messages --------------- Med. Laser destroyed. Acquired Flight Unit. Flight Unit destroyed. Acquired Flight Unit. T-07 Excavator destroyed. K-01 Serf collects debris. Acquired Hvy. Hammer. Flight Unit destroyed. R-06 Scavenger collects Wheel. O-16 Technician: "IFF HANDSHAKE FAILED. SECURING TERMINAL." Flight Unit destroyed. O-16 Technician sends out distress signal. O-16 Technician uses terminal to summon reinforcements. ALERT: Hostiles spotted, dispatching reinforcements to Terminal M002. O-16 Technician locks terminal. Destroyed Flight Unit. S-10 Pest system corrupted by crushing effect. Map ----- +----------------------------------------------------+ | ?????????????????????????????????????????????? | | ?????????????????????????????????????????????? | | ?????????????????????????????????????????????? | | ?????????????????????????????????????????????? | | ?????????????????????????????????????????????? | | ?????????????????????????????????????????????? | | ?????????????????????????????????????????????? | | ?????????????????????????????????????????????? | | ?????????????????????????????????????????????? | | ?????????????????# ??????????????????????????? | | ?????????????????#g ?????????????????????????? | | ?????????????????# ?????????????????????????? | | ?????????????????# ?????????????????????????? | | ?????????????????# ?????????????????#???????? | | ?????????????????# ????????????????? ???????? | | ?????????????????# ?###########??? #???????? | | ?????????????????# ?# #??? #???????? | | ?????????????????# ?# #??? #???????? | | ?????????????????# ?# #??? #???????? | | ?????????????????+ ?# """ """ #??? #???????? | | ?????????????????# ?# """ """ #### #???????? | | ?????????????????# ?# """ """ ## #???????? | | ?????????######### ## + +???????? | | ?????????# ###/######## #???????? | | ?????????# sssss #??# #???????? | | ???? + @ s #??# #???????? | | ??????"" # T #??# #????##?? | | ?????????#### o #??# #??? ??? | | ????????????# t #??# #?? ""??? | | ????????????# g #??# #?= ""??? | | ????????????# g #??# # ????? | | ????????????# """ """ """ #??# + ??????? | | ????????????# """t """ """ #??# #???????? | | ????????????# """ """ """ #### ######### | | ????????????# """ """ """ % | | ??????? !!! # """ """ | | ??????? !! + g | | ????????????# " ######## | | ????????????# %% #???????? | | ????????????## ^ ## ["########???????? | | ?????????????# ## #??????????????? | | ?????????????# ^" //=## #??????????????? | | ?????????????# T /= ## #??????????????? | | ?????????????# /= ## #??????????????? | | ?????????????+ ## #??????????????? | | ?????????????#^ ## #??????????????? | | ?????????????# !|| ## #??????????????? | | ?????????????# !|| ## #??????????????? | | ?????????????# ||| ## #??????????????? | | ?????????##+## ## ??????????????? | +----------------------------------------------------+ Best States ------------- Heat Dissipation 28 Energy Generation 10 Energy Capacity 250 Matter Stores 268 Matter Capacity 300 Sight Range 18 Terrain Scan Density 10 Evasion (%) 63 Recoil Reduction 2 Item Schematics ----------------- None Robot Schematics ------------------ None Fabricated ------------ Nothing Repaired ---------- Nothing Alien Tech Used ----------------- None Achievements -------------- None Challenges ------------ None Game ------ Seed CryofiberLaserHarness Manual? 0 Play Time 00:14:08 Cumulative 4.2 hours Start 2025.08.22 @ 00:22:10 End 2025.08.22 @ 00:32:42 Sessions 1 Manual Loads 0 Difficulty Rogue Special Mode None Game No. 10 Rogue 10 Adventurer 0 Explorer 0 Win Type - Total 0 Types 0/0/0/0/0/0/0/0/0/0 Lore% 1 Gallery% 8 Achievement% 8 Wizard Run 0 Options --------- Layout 1 ASCII 0 Keyboard 0 Movement Arrows Keybinds 0 Fullscreen 1 Font 24/Smallcaps Map View 50x35 Zoom Use 0% Tactical HUD 0 Map Filters NONE Filters NONE Steam 1 RUN: 9f6b71e3-72cb-4451-8f1f-56d0cdb90730